bitfinex/quotes_ETHUSD_20260129
["timestamp","ask_amount","ask_price","bid_price","bid_amount"]
[1769706801630,0.736,2843.2,2842.8,0.48371914]
[1769706801845,0.001,2843.4,2842.8,1.52527114]
[1769706802147,0.93360391,2844.5,2843.2,0.10570266]
[1769706802444,0.736,2844.4,2843.2,1.041552]
[1769706803645,0.93360391,2844.1,2843.2,0.87927696]
[1769706804165,0.93360391,2844.1,2843.2,0.87928972]
[1769706804659,0.93360391,2844.1,2843.1,0.87930545]
[1769706805359,0.97569917,2843.9,2843.1,0.87931373]
[1769706805840,3.706,2844.0,2842.9,3.51749601]
[1769706806146,5.41769917,2843.8,2842.9,3.51749601]
[1769706806319,5.41769917,2843.8,2842.9,4.44984447]
[1769706807746,5.41769917,2843.8,2842.9,0.87938372]
[1769706807747,3.706,2843.6,2842.9,0.87938372]
[1769706809041,3.706,2843.5,2842.9,0.87938372]
[1769706809437,4.68169917,2843.5,2842.9,0.87938372]
[1769706810054,4.68169917,2843.5,2842.7,3.51777548]
[1769706810055,4.68169917,2843.5,2842.8,3.51762603]
[1769706810837,4.68169917,2843.5,2842.8,0.002]
[1769706811025,0.97569917,2843.4,2842.8,0.002]
[1769706811363,0.97569917,2843.3,2842.5,0.002]
[1769706811535,0.97569917,2843.1,2842.5,0.002]
[1769706811920,0.736,2843.0,2842.5,0.88150214]
[1769706812333,0.736,2843.0,2842.5,0.002]
[1769706813051,0.736,2842.9,2842.5,0.002]
[1769706813221,0.736,2842.8,2842.5,0.002]
[1769706814223,3.51600255,2844.2,2842.5,0.002]
[1769706814224,1.78736163,2843.8,2842.6,0.87947653]
[1769706814419,0.90823531,2843.8,2842.7,0.53724325]
[1769706814646,0.736,2843.5,2842.7,1.51029306]
[1769706815056,0.736,2843.5,2842.7,0.53724325]
[1769706815859,0.737,2843.6,2842.7,0.53724325]
[1769706816069,1.64523531,2843.6,2842.7,0.53724325]
[1769706816240,1.64523531,2843.6,2842.8,0.87941466]
[1769706816437,1.64523531,2843.6,2842.9,0.49343166]
[1769706816750,0.737,2843.6,2842.9,0.49343166]
[1769706817861,1.64523531,2843.6,2842.8,0.87941466]
[1769706818038,0.737,2843.6,2842.8,0.87941466]
[1769706818360,0.90823531,2843.5,2842.6,3.51765864]
[1769706818655,0.737,2843.6,2842.6,4.49070845]
[1769706818857,0.001,2843.6,2842.7,0.97304981]
[1769706819023,0.001,2843.6,2842.9,0.97304981]
[1769706819546,0.90823531,2843.5,2842.8,0.44907084]
[1769706819851,0.001,2843.6,2842.5,4.49270845]
[1769706820052,0.001,2843.6,2842.6,1.07875247]
[1769706820428,0.001,2843.6,2842.7,0.87944559]
[1769706821852,0.001,2843.6,2842.8,0.97304981]
[1769706822225,0.001,2843.6,2842.7,0.87944559]
[1769706822430,0.001,2843.6,2842.7,1.76843923]
[1769706822724,0.90923531,2843.6,2842.7,1.76843923]
[1769706823130,0.90823531,2843.5,2842.7,0.87944559]
[1769706823652,0.001,2843.4,2842.7,0.87944559]
[1769706824362,0.736,2843.3,2842.7,0.87944559]
[1769706824656,0.736,2843.3,2842.5,3.51978238]
[1769706825432,0.001,2843.4,2842.6,0.97304981]
[1769706825632,0.001,2843.4,2842.8,0.97304981]
[1769706825838,0.001,2843.4,2842.8,0.97304935]
[1769706826568,0.001,2843.4,2842.9,1.85243353]
[1769706826736,0.90823531,2844.2,2843.0,0.97304981]
[1769706826737,0.736,2844.1,2843.0,0.97304981]
[1769706828637,0.736,2844.1,2843.1,0.87932186]
[1769706828859,0.736,2844.1,2843.2,0.53696591]
[1769706829249,0.90823531,2844.0,2843.2,0.53696591]
[1769706829756,0.90823531,2843.9,2843.1,0.87932186]
[1769706830353,4.61423531,2844.2,2843.1,0.87932186]
[1769706830554,0.90823531,2843.9,2843.1,0.87932186]
[1769706830753,3.706,2844.0,2842.8,0.87941466]
[1769706830754,4.61423531,2843.8,2842.8,0.87941466]
[1769706831067,4.61423531,2843.6,2842.8,0.87941466]
[1769706831574,5.35023531,2843.6,2842.8,0.87941466]
[1769706832346,0.736,2843.5,2842.8,0.87941466]
[1769706832549,4.61423531,2843.4,2842.8,0.87941466]
[1769706832770,3.706,2843.2,2842.6,0.87946303]
[1769706832970,0.90823531,2843.0,2842.5,0.002]
[1769706833163,4.61423531,2843.0,2842.5,0.002]
[1769706833361,4.61423531,2843.0,2842.5,0.88148568]
[1769706833644,0.90823531,2842.8,2842.3,0.87956741]
[1769706834260,0.87923933,2843.4,2842.3,0.87956741]
[1769706834261,0.90823531,2843.1,2842.3,0.87956741]
[1769706834571,5.35023531,2843.0,2842.3,0.87956741]
[1769706834771,0.90823531,2842.9,2842.3,0.87956741]
[1769706835356,0.90823531,2842.9,2842.1,0.002]
[1769706835549,4.66948133,2843.2,2842.1,0.002]
[1769706835752,0.736,2842.8,2842.1,0.002]
[1769706835949,0.96348133,2843.2,2842.1,0.002]
[1769706836169,0.96348133,2843.1,2842.1,0.002]
[1769706836382,0.96348133,2843.0,2842.1,0.002]
[1769706836897,0.96348133,2842.9,2842.1,0.002]
[1769706837064,0.96348133,2842.9,2841.7,3.51899429]
[1769706837065,0.96348133,2842.9,2841.7,0.87975507]
[1769706837374,0.96348133,2842.6,2841.6,0.002]
[1769706837803,1.69948133,2842.5,2841.6,0.002]
[1769706838460,0.96348133,2842.4,2841.6,0.002]
[1769706838661,0.736,2842.3,2841.6,0.002]
[1769706839353,1.69948133,2842.3,2841.6,0.002]
[1769706840053,0.737,2842.2,2841.6,0.002]
[1769706840655,0.737,2842.1,2841.6,0.002]
[1769706841782,1.70048133,2842.1,2841.6,0.002]
[1769706842087,0.96348133,2842.0,2841.6,0.002]
[1769706842583,0.96348133,2842.0,2841.2,0.002]
[1769706842880,0.96348133,2841.8,2840.7,0.88205028]
[1769706843083,0.96348133,2841.8,2840.8,0.88603066]
[1769706843586,0.96348133,2841.8,2841.0,0.87997128]
[1769706843891,0.96348133,2841.8,2840.9,0.8799837]
[1769706843892,0.96348133,2841.6,2840.9,0.8799837]
[1769706844087,0.96348133,2841.6,2840.7,0.002]
[1769706844293,0.96348133,2841.7,2840.8,0.88602823]
[1769706844494,0.737,2841.7,2840.8,0.99173089]
[1769706844788,0.96348133,2841.9,2840.8,0.99173089]
[1769706844987,1.70048133,2841.8,2840.8,0.99173089]
[1769706845192,1.70048133,2841.8,2840.9,0.45138661]
[1769706845392,0.96348133,2841.7,2840.9,0.45138661]
[1769706845690,0.96348133,2841.7,2840.8,0.88602823]
[1769706845868,0.96348133,2841.7,2841.1,0.87994086]
[1769706845869,0.737,2841.7,2841.1,0.87994086]
[1769706846075,1.70048133,2841.7,2841.1,0.87994086]
[1769706846279,0.96348133,2841.6,2841.0,0.87996547]
[1769706846484,0.96348133,2841.6,2840.8,0.88002954]
[1769706846680,0.96348133,2841.6,2841.0,0.87997027]
[1769706846871,0.737,2841.5,2841.0,0.87997027]
[1769706847072,0.737,2841.5,2840.9,0.87998362]
[1769706847379,0.96348133,2841.4,2840.9,0.87999654]
[1769706847585,0.96348133,2841.4,2840.8,0.88001161]
[1769706847782,0.96348133,2841.4,2840.9,0.87999539]
[1769706848071,0.96348133,2841.4,2840.8,0.88002671]
[1769706848271,0.96348133,2841.8,2841.0,0.002]
[1769706848497,0.737,2841.7,2841.0,0.002]
[1769706848670,0.737,2841.7,2841.0,0.00800001]
[1769706849181,0.737,2841.7,2841.0,0.002]
[1769706849395,1.70048133,2841.7,2841.0,0.002]
[1769706849975,0.96348133,2841.6,2841.0,0.002]
[1769706850196,1.37611936,2841.5,2841.0,0.002]
[1769706850402,0.737,2841.4,2841.0,0.002]
[1769706850695,1.37611936,2841.5,2841.0,0.002]
[1769706850882,0.737,2841.4,2841.0,0.002]
[1769706851083,0.737,2841.4,2841.0,0.00800001]
[1769706852074,0.737,2841.4,2841.0,0.88796603]
[1769706852275,0.737,2841.4,2841.0,0.00800001]
[1769706853075,0.737,2841.4,2841.0,0.002]
[1769706853281,1.61684865,2841.4,2841.0,0.002]
[1769706853481,5.32284865,2841.4,2841.0,0.002]
[1769706853708,4.443,2841.4,2841.0,0.94878661]
[1769706853918,0.3623963,2841.5,2841.0,0.88797168]
[1769706854224,1.84307288,2842.3,2841.2,0.87990989]
[1769706854383,0.737,2842.2,2841.2,0.87990989]
[1769706854579,0.96348133,2842.1,2841.1,1.32070657]
[1769706854778,0.96348133,2841.8,2841.0,0.002]
[1769706855028,0.96348133,2841.8,2840.8,0.8820333]
[1769706855029,0.96348133,2841.5,2840.8,0.002]
[1769706855322,3.706,2841.4,2840.7,0.002]
[1769706855532,3.706,2841.2,2840.7,0.002]
[1769706856017,4.58600208,2841.0,2840.5,0.002]
[1769706856236,4.58600208,2841.0,2839.9,0.88231268]
[1769706856237,3.706,2841.0,2839.9,0.88231268]
[1769706856415,0.737,2840.9,2840.0,0.00600001]
[1769706858211,1.61700767,2840.9,2840.1,0.88025069]
[1769706858626,1.6170076,2840.9,2840.1,1.32117604]
[1769706858935,5.32300479,2840.9,2840.1,0.44692536]
[1769706859135,4.66948133,2840.8,2840.1,0.00600001]
[1769706859642,0.96348133,2840.7,2840.1,0.00600001]
[1769706860457,0.96348133,2840.7,2840.1,0.88824424]
[1769706860654,1.84356624,2840.7,2840.1,0.00800001]
[1769706861084,0.96348133,2840.7,2840.1,0.00800001]
[1769706861257,0.96348133,2840.7,2840.1,0.88824489]
[1769706861758,0.737,2840.6,2840.1,0.88824489]
[1769706862629,0.737,2840.6,2840.1,0.00800001]
[1769706862823,0.96348133,2840.5,2839.9,0.002]
[1769706863031,0.96348133,2840.3,2839.6,0.002]
[1769706863226,0.96348133,2840.3,2839.6,0.88240176]
[1769706863458,0.96348133,2840.3,2839.7,0.88037366]
[1769706863754,0.737,2840.4,2839.7,0.88035215]
[1769706863961,4.58610618,2840.6,2839.9,0.88029838]
[1769706864160,0.737,2840.5,2839.8,0.88032165]
[1769706864372,0.737,2840.5,2839.8,0.88032565]
[1769706864524,0.737,2840.5,2839.9,0.88031255]
[1769706864721,5.32313995,2840.5,2839.6,0.002]
[1769706865128,4.58613995,2840.5,2839.6,0.002]
[1769706865342,3.706,2840.3,2839.6,0.002]
[1769706865735,1.67172615,2840.4,2839.6,0.002]
[1769706866154,4.4544579,2841.2,2839.6,0.93632217]
[1769706866461,0.93472615,2841.0,2839.7,1.11599806]
[1769706866633,0.88000281,2840.9,2839.8,0.88034368]
[1769706866831,1.81472896,2840.9,2839.8,0.88034368]
[1769706867031,4.64072615,2840.8,2839.8,0.88034368]
[1769706867357,0.93472615,2840.4,2839.6,0.002]
[1769706867532,0.93472615,2840.4,2839.6,0.88238949]
[1769706867728,0.93472615,2840.3,2839.6,0.002]
[1769706868130,3.706,2840.4,2839.7,0.88037133]
[1769706868349,3.706,2840.4,2839.6,0.002]
[1769706868350,0.737,2840.3,2839.6,0.002]
[1769706868746,0.8802197,2840.2,2839.6,0.002]
[1769706868946,0.737,2840.1,2839.6,0.002]
[1769706869868,0.737,2840.0,2839.6,0.002]
[1769706870032,0.737,2840.0,2839.3,0.88248253]
[1769706870657,3.706,2840.7,2839.4,0.93432217]
[1769706870857,0.737,2840.0,2839.5,0.88043669]
[1769706871155,0.737,2840.0,2839.4,0.88045397]
[1769706871357,1.61728257,2840.0,2839.3,0.002]
[1769706871558,0.737,2840.0,2839.4,0.88046086]
[1769706872059,1.61728549,2840.0,2839.4,0.88046086]
[1769706872263,0.8802724,2840.1,2839.4,0.88046086]
[1769706872559,0.737,2840.0,2839.7,0.002]
[1769706872758,0.737,2840.0,2839.4,0.88046086]
[1769706872974,0.737,2840.0,2839.3,0.002]
[1769706872975,1.61729063,2840.0,2839.5,0.002]
[1769706873173,1.61729063,2840.0,2839.3,0.002]
[1769706873475,0.94220767,2840.1,2839.3,0.002]
[1769706873772,3.706,2840.2,2839.3,0.002]
[1769706873939,0.737,2840.0,2839.3,0.96125653]
[1769706874675,0.737,2840.0,2839.3,0.002]
[1769706874876,4.58623923,2840.2,2839.3,0.002]
[1769706875083,0.737,2840.1,2839.3,0.002]
[1769706875246,0.737,2840.1,2839.3,0.45034924]
[1769706875574,6.42,2840.3,2839.4,0.95925653]
[1769706875749,1.67920767,2840.2,2839.3,0.45034924]
[1769706876177,3.706,2840.1,2839.3,0.002]
[1769706876558,4.64820767,2840.1,2839.3,0.002]
[1769706876969,4.58634368,2839.8,2839.3,0.002]
[1769706878392,4.58633041,2839.9,2839.3,0.002]
[1769706878675,4.58633041,2839.9,2838.8,1.83991032]
[1769706878849,3.706,2839.7,2838.8,1.76937722]
[1769706879177,4.58638275,2839.7,2838.8,0.88065379]
[1769706879502,3.706,2839.3,2838.7,0.002]
[1769706879775,0.737,2839.2,2838.7,0.002]
[1769706880078,3.52148574,2839.8,2838.7,0.002]
[1769706880079,0.001,2840.5,2839.4,1.4212716]
[1769706880279,0.001,2840.5,2839.4,0.41948061]
[1769706880474,0.001,2840.5,2839.1,0.41948061]
[1769706880680,0.94320767,2840.5,2839.1,0.41948061]
[1769706881053,0.94320767,2840.5,2839.2,0.88052972]
[1769706881253,0.94320767,2840.5,2839.3,0.48221292]
[1769706882384,0.737,2840.4,2839.4,0.41948061]
[1769706882952,0.737,2840.4,2839.5,0.88043669]
[1769706884981,0.94220767,2840.3,2839.4,3.52174678]
[1769706885147,0.94220767,2840.3,2839.5,0.002]
[1769706885352,0.94220767,2840.3,2839.6,0.35237468]
[1769706885552,0.94220767,2840.3,2839.5,0.002]
[1769706885780,0.94220767,2840.2,2839.5,0.002]
[1769706886100,0.94220767,2840.1,2839.3,0.88248807]
[1769706887061,0.94220767,2839.9,2839.3,0.002]
[1769706889255,0.001,2840.3,2839.3,0.42148061]
[1769706889449,0.737,2840.2,2839.3,0.42148061]
[1769706891256,0.001,2840.3,2839.4,0.8804677]
[1769706891457,0.738,2840.3,2839.5,0.48238191]
[1769706893673,0.738,2840.3,2839.6,0.88040569]
[1769706896165,0.92840684,2840.2,2839.6,0.88040569]
[1769706896894,0.737,2840.1,2839.6,0.88040569]
[1769706897091,0.738,2840.3,2839.6,0.88040569]
[1769706897294,0.738,2840.3,2839.7,0.48844104]
[1769706898193,0.001,2840.3,2839.8,0.88034368]
[1769706904175,0.92940684,2840.5,2839.8,1.40452695]
[1769706904176,0.001,2840.5,2839.8,1.40452695]
[1769706904376,0.001,2840.5,2839.8,0.88034368]
[1769706905474,0.001,2840.5,2839.8,1.40452695]
[1769706905693,0.001,2840.5,2839.9,0.54143427]
[1769706906303,0.001,2840.5,2840.0,0.88028169]
[1769706907600,0.92840684,2841.2,2840.0,1.2987623]
[1769706907920,0.92840684,2841.2,2840.0,1.40346496]
[1769706908080,0.92840684,2841.2,2840.1,0.41748061]
[1769706908289,0.92840684,2841.6,2840.3,0.41748061]
[1769706908498,0.92840684,2841.6,2840.4,0.88015772]
[1769706908678,0.92840684,2841.6,2840.5,0.48182692]
[1769706908887,0.001,2841.7,2840.6,0.41748061]
[1769706909099,0.92940684,2841.7,2840.5,1.14995125]
[1769706909300,0.92940684,2841.7,2840.5,0.48182692]
[1769706909618,0.92840684,2841.6,2840.5,0.48182692]
[1769706910291,0.92840684,2841.3,2840.5,0.48182692]
[1769706910514,0.92840684,2841.3,2840.6,0.88009575]
[1769706911398,0.001,2841.4,2840.6,0.88009575]
[1769706911590,0.001,2841.4,2840.7,0.10570266]
[1769706912211,0.001,2841.4,2840.9,0.10570266]
[1769706912586,0.001,2841.4,2841.0,0.87997184]
[1769706912786,0.001,2841.4,2841.1,0.45055619]
[1769706913598,0.92940684,2841.4,2841.1,0.45055619]
[1769706913796,0.92940684,2841.4,2841.0,0.87997184]
[1769706914594,0.92940684,2841.4,2840.7,3.52019545]
[1769706915132,0.001,2841.7,2840.7,3.52019545]
[1769706915488,0.92940684,2841.7,2840.7,3.52019545]
[1769706916421,0.88075557,2841.7,2840.7,3.52019545]
[1769706916626,0.92840684,2841.6,2840.8,0.44002602]
[1769706916790,0.92840684,2841.6,2840.8,1.32003355]
[1769706917143,0.92840684,2841.5,2840.8,0.88000753]
[1769706918428,0.92840684,2841.5,2840.5,0.48182692]
[1769706918651,4.63440684,2841.4,2840.4,0.8801464]
[1769706918789,0.92840684,2841.3,2840.5,0.88012423]
[1769706918992,0.92840684,2841.1,2840.0,3.52309647]
[1769706919788,3.51928858,2841.5,2840.4,0.92242358]
[1769706919789,0.737,2841.5,2840.4,0.92242358]
[1769706920618,1.66540684,2841.5,2840.1,0.92242358]
[1769706921198,1.8082548,2841.4,2840.2,0.8802197]
[1769706921391,0.92840684,2841.3,2840.2,0.8802197]
[1769706922987,0.92840684,2841.3,2840.2,0.98592236]
[1769706923200,1.66540684,2841.3,2840.3,0.45068012]
[1769706923413,0.92940684,2841.3,2840.4,0.88015772]
[1769706923613,1.66640684,2841.3,2840.4,0.88015772]
[1769706924347,0.001,2841.3,2840.4,1.8025813]
[1769706924637,0.001,2841.3,2840.5,0.92242358]
[1769706924814,0.001,2841.3,2840.6,1.11325198]
[1769706925138,0.001,2841.3,2840.6,0.1908284]
[1769706925357,0.001,2841.3,2840.7,0.88006477]
[1769706929133,0.001,2841.3,2840.7,1.86909897]
[1769706931123,0.001,2841.3,2840.7,0.88006477]
[1769706931339,0.001,2841.3,2840.8,0.45911523]
[1769706931545,0.001,2841.3,2840.9,0.88000281]
[1769706933465,0.001,2841.7,2840.9,0.88000281]
[1769706938948,0.001,2841.7,2841.0,1.01135808]
[1769706939152,0.74049566,2842.5,2841.1,0.90565542]
[1769706939352,1.47749566,2842.5,2841.1,0.90565542]
[1769706939661,1.47749566,2842.5,2841.3,0.87987892]
[1769706939962,2.35700438,2842.5,2841.4,0.45050973]
[1769706940137,1.62000438,2842.5,2841.4,0.45050973]
[1769706940466,2.35700438,2842.5,2841.4,0.45050973]
[1769706940865,1.47749566,2842.5,2841.4,1.46186781]
[1769706941388,0.31351918,2842.6,2841.7,0.90565542]
[1769706941833,0.31351918,2842.6,2841.8,0.87972411]
[1769706942175,0.31351918,2842.6,2841.9,0.5304276]
[1769706943852,0.31351918,2842.6,2842.0,1.78531762]
[1769706944862,0.31351918,2842.6,2842.0,0.8796622]
[1769706948281,0.001,2842.4,2842.0,0.8796622]
[1769706949767,0.91149566,2842.4,2841.8,0.87970397]
[1769706949999,0.91149566,2842.4,2841.6,0.87977979]
[1769706950291,0.91049566,2842.2,2841.1,0.002]
[1769706951351,1.64749566,2842.2,2841.1,0.002]
[1769706952283,0.91049566,2842.2,2841.1,0.88194086]
[1769706953083,0.91049566,2842.2,2841.1,1.78759628]
[1769706953378,0.91049566,2842.2,2841.2,0.54130624]
[1769706953947,0.91049566,2842.1,2841.2,0.54130624]
[1769706954796,0.91049566,2842.0,2841.1,0.88191079]
[1769706954976,0.91049566,2842.0,2841.1,0.002]
[1769706956185,0.97040939,2841.9,2841.1,0.002]
[1769706956355,0.87963158,2842.1,2840.6,0.002]
[1769706956356,0.97040939,2841.7,2840.6,0.002]
[1769706956558,0.97040939,2841.5,2840.4,0.002]
[1769706956789,0.97040939,2841.2,2840.4,0.002]
[1769706957023,0.97040939,2841.0,2840.0,1.34569148]
[1769706957299,0.97040939,2841.0,2839.8,0.002]
[1769706957497,3.706,2840.6,2839.7,0.002]
[1769706957669,0.97040939,2840.3,2839.3,0.002]
[1769706957866,0.97040939,2840.1,2839.3,0.002]
[1769706958065,0.97040939,2839.9,2839.2,0.002]
[1769706958682,1.85075307,2839.8,2839.2,0.002]
[1769706959590,2.58775307,2839.8,2839.2,0.002]
[1769706959793,3.706,2840.5,2839.3,0.95398469]
[1769706959958,1.85046268,2840.8,2840.0,0.10570266]
[1769706960159,1.85046268,2840.8,2839.4,0.10570266]
[1769706960367,0.97040939,2841.0,2839.2,0.002]
[1769706960568,0.97040939,2840.9,2839.2,0.002]
[1769706960774,0.97040939,2840.7,2839.2,0.88252972]
[1769706960991,0.97040939,2840.5,2839.7,0.002]
[1769706961210,0.97040939,2840.5,2839.5,0.002]
[1769706962186,0.737,2840.4,2839.5,0.002]
[1769706962388,0.97040939,2840.5,2839.5,0.002]
[1769706962590,0.737,2840.4,2839.5,0.002]
[1769706963095,1.61715772,2840.4,2839.5,0.002]
[1769706964589,0.88015772,2840.4,2839.5,0.002]
[1769706964792,0.737,2840.3,2839.5,0.002]
[1769706965403,1.61719318,2840.3,2839.5,0.002]
[1769706965894,0.97040939,2840.2,2839.2,0.002]
[1769706966098,0.97040939,2840.2,2838.7,0.002]
[1769706966303,1.07611205,2840.2,2838.7,0.002]
[1769706966502,0.97040939,2839.8,2838.5,10.07858858]
[1769706966800,0.97040939,2839.6,2838.5,7.54308262]
[1769706967009,0.1024,2839.5,2838.3,0.002]
[1769706967207,0.10570266,2839.3,2838.1,0.002]
[1769706967384,2.20478534,2839.2,2838.1,0.002]
[1769706967582,1.32425562,2839.1,2838.1,0.002]
[1769706967783,0.58725562,2839.0,2838.1,0.002]
[1769706968186,0.58725562,2839.0,2837.8,13.47919899]
[1769706968381,0.58725562,2839.0,2837.8,12.59823572]
[1769706969108,0.737,2838.9,2837.8,12.59823572]
[1769706969317,0.88068482,2838.7,2837.8,12.59823572]
[1769706969528,0.34828589,2838.6,2837.8,12.59823572]
[1769706969975,0.34828589,2838.6,2835.8,9.40229123]
[1769706969976,0.34828589,2838.6,2837.1,4.52467578]
[1769706970301,0.34828589,2838.6,2837.4,0.88106377]
[1769706970502,0.34828589,2838.6,2837.5,0.88105425]
[1769706971209,0.737,2838.5,2837.8,1.0]
[1769706971417,0.8807779,2838.4,2837.6,1.0]
[1769706971612,0.737,2838.3,2837.6,1.0]
[1769706972318,0.34828589,2838.6,2837.6,1.0]
[1769706972488,0.737,2838.5,2837.6,1.0]
[1769706972687,0.737,2838.5,2837.8,1.0]
[1769706973415,0.737,2838.5,2838.0,0.002]
[1769706973581,0.737,2838.4,2837.4,1.0]
[1769706973785,0.737,2838.4,2837.4,1.8810676]
[1769706973987,0.737,2838.4,2837.8,0.002]
[1769706974411,0.737,2838.4,2837.2,3.52359757]
[1769706974611,0.737,2838.4,2837.6,0.88102484]
[1769706974812,0.737,2838.4,2837.5,0.88103654]
[1769706975218,0.737,2838.4,2837.4,0.88106594]
[1769706975423,0.737,2838.4,2837.2,1.96414804]
[1769706975627,0.737,2838.4,2837.3,0.88109921]
[1769706975628,0.88080893,2838.3,2837.3,0.88109921]
[1769706976120,0.738,2838.2,2837.3,1.88109921]
[1769706978336,0.880871,2838.1,2837.3,1.83109921]
[1769706979613,0.738,2838.0,2837.3,1.83109921]
[1769706980009,0.738,2838.0,2837.3,1.88111841]
[1769706980818,0.738,2837.9,2837.3,1.88111841]
[1769706981110,0.34828589,2838.6,2837.5,1.0]
[1769706981530,1.22900349,2838.6,2837.5,1.0]
[1769706981810,0.34828589,2838.6,2837.5,1.0]
[1769706982014,1.08628589,2838.6,2837.5,1.0]
[1769706983160,0.34828589,2838.6,2837.7,1.0]
[1769706983343,0.34828589,2838.6,2837.9,1.0]
[1769706984047,0.88042737,2839.6,2837.9,0.95398469]
[1769706984216,0.8812704,2840.1,2838.2,0.95398469]
[1769706984418,0.001,2840.1,2838.6,0.95398469]
[1769706984844,0.001,2840.1,2838.8,0.95398469]
[1769706985019,0.001,2840.1,2839.0,0.95398469]
[1769706985222,0.001,2840.1,2839.2,0.95398469]
[1769706987460,0.738,2840.0,2838.9,1.83771582]
[1769706987637,0.738,2840.0,2838.9,0.95709662]
[1769706988019,0.96835811,2840.0,2838.6,0.88071302]
[1769706988429,0.96835811,2840.0,2838.6,1.83780964]
[1769706988632,0.96835811,2840.0,2838.7,0.88068468]
[1769706988821,0.96835811,2840.0,2838.6,1.83779314]
[1769706989028,0.88031268,2839.9,2838.6,1.83779314]
[1769706989233,0.88031268,2839.9,2838.6,1.8378117]
[1769706989430,0.88031268,2839.9,2837.5,3.62988712]
[1769706989431,1.11067079,2839.9,2838.2,0.95709662]
[1769706989639,1.11067079,2839.9,2838.6,0.88071191]
[1769706990151,0.738,2839.8,2838.6,0.88071191]
[1769706990330,0.738,2839.8,2838.6,1.83780853]
[1769706990514,0.88031268,2839.9,2838.6,1.83780853]
[1769706990715,0.88031268,2839.9,2838.7,0.95709662]
[1769706990953,0.738,2839.8,2838.7,0.95709662]
[1769706991451,0.88037468,2839.7,2838.8,1.83775041]
[1769706991620,0.88037468,2839.7,2838.9,0.53604355]
[1769706992138,0.88037468,2839.7,2838.9,1.49314017]
[1769706992453,0.88037468,2839.7,2838.9,0.95709662]
[1769706992747,0.88037468,2839.7,2838.7,0.88068224]
[1769706992748,3.706,2839.6,2838.7,0.88068224]
[1769706992951,0.738,2839.5,2838.7,1.85405915]
[1769706993649,0.8804677,2839.4,2838.7,1.85405915]
[1769706993839,0.8804677,2839.4,2838.7,0.97337691]
[1769706994037,0.8804677,2839.4,2838.7,1.85405582]
[1769706994646,0.8804677,2839.4,2838.7,0.97337691]
[1769706995560,0.8804677,2839.4,2838.7,1.85406051]
[1769706995956,0.8804677,2839.4,2838.7,0.97337691]
[1769706996252,0.8804677,2839.4,2838.4,0.97337691]
[1769706996456,0.8804677,2839.4,2838.3,0.88080419]
[1769706996645,4.92252847,2839.4,2838.1,0.97337691]
[1769706996846,3.706,2839.3,2838.1,0.97337691]
[1769706997152,0.001,2839.2,2838.1,0.97337691]
[1769706997325,0.001,2839.2,2838.2,1.85420166]
[1769706997526,0.88152972,2839.2,2838.3,0.97337691]
[1769706997724,0.738,2839.1,2838.3,0.97337691]
[1769706998332,4.444,2839.1,2838.1,0.88084835]
[1769706998542,0.738,2839.0,2838.2,0.8808386]
[1769706998727,3.706,2839.1,2838.2,0.8808386]
[1769706999058,0.738,2839.0,2838.2,0.8808386]
[1769706999627,0.88062277,2838.9,2838.1,1.85422709]
[1769707000460,1.11098088,2838.9,2837.9,0.84107165]
[1769707000640,3.706,2838.8,2837.9,0.84107165]
[1769707001157,3.706,2838.8,2837.9,1.72198968]
[1769707001329,3.706,2838.9,2838.1,1.85423959]
[1769707001653,0.738,2838.7,2838.1,1.85423959]
[1769707001963,0.738,2838.7,2838.1,2.47612848]
[1769707002157,1.61868543,2838.7,2838.1,1.5952658]
[1769707002335,0.738,2838.7,2838.1,2.47613229]
[1769707002737,1.61867367,2838.8,2838.1,0.97337691]
[1769707002941,1.61867367,2838.8,2838.0,0.88089032]
[1769707003139,1.61867367,2838.8,2837.9,1.72200053]
[1769707003661,3.706,2838.7,2837.9,0.84107165]
[1769707003827,0.88071584,2838.6,2837.9,0.84107165]
[1769707004034,4.58671584,2838.6,2837.9,0.84107165]
[1769707004234,4.58671584,2838.6,2837.2,0.97337691]
[1769707004432,4.58671584,2838.6,2837.2,1.85452732]
[1769707004737,4.58671584,2838.6,2837.2,1.85450454]
[1769707005360,4.58671584,2838.6,2837.2,0.97337691]
[1769707005745,4.58671584,2838.6,2837.2,1.85452375]
[1769707005950,4.58671584,2838.6,2837.2,0.97337691]
[1769707006156,4.6924185,2838.6,2837.2,0.97337691]
[1769707007640,4.6924185,2838.6,2837.0,15.11788287]
[1769707007641,0.10570266,2838.3,2837.0,15.11788287]
[1769707007836,3.706,2838.1,2837.0,15.06788287]
[1769707008077,3.706,2838.0,2837.0,15.06788287]
[1769707008377,3.706,2837.8,2837.0,15.06788287]
[1769707008743,3.706,2837.8,2837.4,0.001]
[1769707008969,3.706,2837.8,2837.1,0.002]
[1769707009992,4.58699517,2837.7,2837.0,15.01788587]
[1769707010145,4.58699517,2837.7,2836.6,0.002]
[1769707010558,0.00571382,2837.6,2836.6,0.002]
[1769707010755,0.00571382,2837.6,2836.4,0.92393759]
[1769707010756,0.00371382,2837.4,2836.4,0.92393759]
[1769707011078,0.20810266,2837.5,2836.0,0.002]
[1769707011366,4.444,2837.4,2836.1,1.88433386]
[1769707011573,4.444,2837.4,2836.1,1.00285691]
[1769707011745,4.444,2837.4,2836.1,1.8843353]
[1769707012173,0.88111937,2837.3,2836.1,1.00285691]
[1769707013835,0.88111937,2837.3,2836.0,0.002]
[1769707014174,0.88118148,2837.1,2836.2,17.38533834]
[1769707014371,0.88118148,2837.1,2836.2,17.37465496]
[1769707014542,0.88118148,2837.1,2836.2,17.36397158]
[1769707014739,0.20810266,2837.0,2836.2,2.17188352]
[1769707014944,0.1024,2837.0,2836.2,2.16120014]
[1769707015158,0.1024,2837.0,2836.0,0.002]
[1769707015566,1.88469895,2836.7,2835.7,1.00285691]
[1769707015877,0.75387958,2836.6,2835.6,0.002]
[1769707016173,0.75387958,2836.5,2836.3,1.22882899]
[1769707016353,0.75387958,2836.4,2836.3,1.22882899]